[Event "Hungarian Youth-ch I 2024"]
[Site "Szolnok"]
[Date "2024.04.03"]
[Round "5.20"]
[White "Golya, David"]
[Black "Marton-John, Almos Kiran"]
[Result "1-0"]
[ECO "C50"]
[WhiteElo "1672"]
[BlackElo "1693"]
[Annotator "NA RC"]
[PlyCount "127"]
[EventDate "2024.03.31"]
[EventType "swiss"]
[EventCountry "HUN"]
[SourceTitle "playchess.com"]
[Source "ChessBase"]
[SourceQuality "1"]
[TimeControl "5400+30"]

1. e4 {[%emt 0:00:06]} e5 {[%emt 0:00:20]} 2. Nf3 {[%emt 0:00:07]} Nc6 {[%emt 0:00:03]} 3. Bc4 {[%emt 0:00:05]} Bc5 {[%emt 0:00:05]} 4. O-O {[%emt 0:00:06]} Nf6 {[%emt 0:00:03]} 5. Nc3 {[%emt 0:00:08]} d6 {[%emt 0:00:08]} 6. h3 {[%emt 0:00:10]} h6 {[%emt 0:00:04]} 7. d3 {[%emt 0:00:10]} g5 {[%emt 0:00:19]} 8. Nh2 {[%emt 0:03:00]} g4 {[%emt 0:00:10]} 9. hxg4 {[%emt 0:00:18]} Rg8 {[%emt 0:00:05]} 10. g5 {[%emt 0:04:57]} hxg5 {[%emt 0:00:08]} 11. Be3 {[%emt 0:00:12]} Be6 {[%emt 0:00:20]} 12. Bxe6 {[%emt 0:02:13]} fxe6 {[%emt 0:00:06]} 13. Bxc5 {[%emt 0:00:05]} dxc5 {[%emt 0:00:09]} 14. g3 {[%emt 0:04:07]} Qe7 {[%emt 0:01:20]} 15. Kg2 {[%emt 0:00:59]} O-O-O {[%emt 0:00:52]} 16. Ng4 {[%emt 0:05:01]} c4 {[%emt 0:09:34]} 17. Qf3 {[%emt 0:03:49]} Nxg4 {[%emt 0:01:24]} 18. Qxg4 {[%emt 0:00:08]} cxd3 {[%emt 0:03:43]} 19. Nd5 {[%emt 0:00:36]} Qf7 {[%emt 0:17:12]} 20. cxd3 {[%emt 0:03:14]} Kb8 {[%emt 0:00:32]} 21. Ne3 {[%emt 0:05:11]} Rxd3 {[%emt 0:00:26]} 22. Rab1 {[%emt 0:01:02]} Nd4 {[%emt 0:13:11]} 23. Rbc1 {[%emt 0:22:10]} Rf8 {[%emt 0:02:46]} 24. Rcd1 {[%emt 0:10:15]} Rxd1 {[%emt 0:02:35]} 25. Nxd1 {[%emt 0:00:34]} Qf3+ {[%emt 0:01:09]} 26. Qxf3 {[%emt 0:00:07]} Rxf3 {[%emt 0:00:04]} 27. Rh1 {[%emt 0:00:43]} c5 {[%emt 0:01:19]} 28. Rh5 {[%emt 0:00:26]} Rd3 {[%emt 0:01:16]} 29. Ne3 {[%emt 0:00:51]} Rd2 {[%emt 0:00:20]} 30. Rxg5 {[%emt 0:00:05]} Rxb2 {[%emt 0:00:14]} 31. Rxe5 {[%emt 0:00:07]} b6 {[%emt 0:00:44]} 32. g4 {[%emt 0:01:10]} Ne2 {[%emt 0:03:47]} 33. g5 {[%emt 0:10:55]} Nf4+ {[%emt 0:01:03]} 34. Kf3 {[%emt 0:02:54]} Rxf2+ {[%emt 0:00:46]} 35. Kg3 {[%emt 0:01:39]} Kc7 {[%emt 0:14:42]} 36. g6 {[%emt 0:00:16]} Nxg6 {[%emt 0:03:47]} 37. Rxe6 {[%emt 0:00:13]} Nf4 {[%emt 0:16:21]} 38. Nd5+ {[%emt 0:01:34]} Nxd5 {[%emt 0:00:09]} 39. Kxf2 {[%emt 0:00:09]} Nc3 {[%emt 0:00:14]} 40. Re7+ {[%emt 0:00:10]} Kd6 {[%emt 0:00:48]} 41. Rxa7 {[%emt 0:00:16]} Nxe4+ {[%emt 0:00:07]} 42. Ke3 {[%emt 0:00:17]} Nc3 {[%emt 0:00:25]} 43. Kd3 {[%emt 0:00:17]} Nd5 {[%emt 0:00:08]} 44. a3 {[%emt 0:01:15]} Kc6 {[%emt 0:00:08]} 45. Rh7 {[%emt 0:01:37]} Kb5 {[%emt 0:00:27]} 46. Rh4 {[%emt 0:00:17]} Ne7 {[%emt 0:00:44]} 47. Kc3 {[%emt 0:00:41]} Nc6 {[%emt 0:00:07]} 48. Rh8 {[%emt 0:02:53]} Ka4 {[%emt 0:01:56]} 49. Ra8+ {[%emt 0:00:44]} Na5 {[%emt 0:00:10]} 50. Kb2 {[%emt 0:00:16]} Kb5 {[%emt 0:01:07]} 51. Rg8 {[%emt 0:02:38]} Nc6 {[%emt 0:00:57]} 52. Rg6 {[%emt 0:00:22]} Ne5 {[%emt 0:00:27]} 53. Re6 {[%emt 0:00:24]} Nf3 {[%emt 0:01:08]} 54. Rf6 {[%emt 0:02:30]} Nd2 {[%emt 0:00:16]} 55. Kc2 {[%emt 0:01:43]} Nc4 {[%emt 0:00:29]} 56. Rf3 {[%emt 0:01:06]} Ka4 {[%emt 0:00:33]} 57. Rf4 {[%emt 0:00:35]} Kb5 {[%emt 0:00:46]} 58. a4+ {[%emt 0:00:29]} Kb4 {[%emt 0:03:17]} 59. Kd3 {[%emt 0:00:07]} Kxa4 {[%emt 0:00:13]} 60. Kxc4 {[%emt 0:00:21]} Ka5 {[%emt 0:00:37]} 61. Rf8 {[%emt 0:00:28]} Ka6 {[%emt 0:00:14]} 62. Rf7 {[%emt 0:00:22]} b5+ {[%emt 0:00:36]} 63. Kxc5 {[%emt 0:00:10]} b4 {[%emt 0:00:08]} 64. Kxb4 {[%emt 0:00:13]} 1-0

[Event "Hungarian Youth-ch I 2024"]
[Site "Szolnok"]
[Date "2024.04.03"]
[Round "5.24"]
[White "Kovacs, Reka"]
[Black "Nandin-Erdene, Davaademberel"]
[Result "0-1"]
[ECO "B06"]
[WhiteElo "1855"]
[BlackElo "1978"]
[Annotator "RC"]
[PlyCount "134"]
[EventDate "2024.03.31"]
[EventType "swiss"]
[EventCountry "HUN"]
[SourceTitle "playchess.com"]
[Source "ChessBase"]
[SourceQuality "1"]
[TimeControl "5400+30"]

1. e4 {[%emt 0:00:02]} g6 {[%emt 0:00:17]} 2. d4 {[%emt 0:00:07]} Bg7 {[%emt 0:00:15]} 3. Nc3 {[%emt 0:00:20]} c6 {[%emt 0:00:31]} 4. Be3 {[%emt 0:01:07]} d5 {[%emt 0:00:24]} 5. exd5 {[%emt 0:08:49]} cxd5 {[%emt 0:00:55]} 6. Nf3 {[%emt 0:01:59]} Nh6 {[%emt 0:01:12]} 7. Qd2 {[%emt 0:08:25]} Nf5 {[%emt 0:01:58]} 8. Bf4 {[%emt 0:02:44]} O-O {[%emt 0:05:07]} 9. Nb5 {[%emt 0:12:08]} Nc6 {[%emt 0:14:49]} 10. c3 {[%emt 0:16:04]} a6 {[%emt 0:03:55]} 11. Na3 {[%emt 0:01:15]} b5 {[%emt 0:14:30]} 12. Nc2 {[%emt 0:02:38]} Nd6 {[%emt 0:02:51]} 13. Bd3 {[%emt 0:02:54]} Bf5 {[%emt 0:05:22]} 14. Bxf5 {[%emt 0:04:56]} Nxf5 {[%emt 0:00:29]} 15. h4 {[%emt 0:03:44]} h5 {[%emt 0:02:41]} 16. Ne3 {[%emt 0:02:24]} Nd6 {[%emt 0:02:02]} 17. g4 {[%emt 0:02:37]} Ne4 {[%emt 0:00:19]} 18. Qe2 {[%emt 0:01:41]} Nf6 {[%emt 0:01:55]} 19. Ne5 {[%emt 0:01:12]} Rc8 {[%emt 0:04:01]} 20. Nxc6 {[%emt 0:05:08]} Rxc6 {[%emt 0:00:04]} 21. Be5 {[%emt 0:00:31]} Nxg4 {[%emt 0:03:57]} 22. Nxg4 {[%emt 0:01:11]} hxg4 {[%emt 0:00:05]} 23. Bxg7 {[%emt 0:01:10]} Kxg7 {[%emt 0:00:04]} 24. Qxg4 {[%emt 0:00:14]} Re6+ {[%emt 0:00:23]} 25. Kd2 {[%emt 0:06:02]} b4 {[%emt 0:11:48]} 26. h5 {[%emt 0:04:35]} Qb6 {[%emt 0:00:59]} 27. Rab1 {[%emt 0:01:56]} Qa5 {[%emt 0:10:24]} 28. hxg6 {[%emt 0:01:03]} Rxg6 {[%emt 0:03:25]} 29. Qh3 {[%emt 0:00:30]} Rg8 {[%emt 0:01:30]} 30. cxb4 {[%emt 0:02:24]} Qxb4+ {[%emt 0:00:43]} 31. Qc3 {[%emt 0:00:12]} Qb8 {[%emt 0:02:09]} 32. Qe3 {[%emt 0:00:17]} Qb4+ {[%emt 0:01:45]} 33. Qc3 {[%emt 0:00:21]} Qd6 {[%emt 0:00:21]} 34. Rbc1 {[%emt 0:03:31]} Qf4+ {[%emt 0:01:41]} 35. Qe3 {[%emt 0:00:07]} Qxe3+ {[%emt 0:01:19]} 36. fxe3 {[%emt 0:00:46]} Rb8 {[%emt 0:00:46]} 37. Kc3 {[%emt 0:01:14]} Rc6+ {[%emt 0:00:14]} 38. Kd3 {[%emt 0:01:26]} Rxc1 {[%emt 0:00:05]} 39. Rxc1 {[%emt 0:00:07]} Rxb2 {[%emt 0:00:08]} 40. Ra1 {[%emt 0:00:44]} Kf6 {[%emt 0:01:10]} 41. Kc3 {[%emt 0:00:16]} Re2 {[%emt 0:00:28]} 42. Kd3 {[%emt 0:00:02]} Rb2 {[%emt 0:01:23]} 43. Kc3 {[%emt 0:00:26]} Rf2 {[%emt 0:01:08]} 44. Kb4 {[%emt 0:00:32]} Re2 {[%emt 0:00:43]} 45. Ka5 {[%emt 0:00:51]} Rxe3 {[%emt 0:00:11]} 46. Kxa6 {[%emt 0:00:20]} Rd3 {[%emt 0:00:16]} 47. Kb5 {[%emt 0:01:53]} Rxd4 {[%emt 0:00:16]} 48. a4 {[%emt 0:00:19]} Rc4 {[%emt 0:00:50]} 49. Re1 {[%emt 0:00:59]} Rc8 {[%emt 0:01:30]} 50. a5 {[%emt 0:00:23]} e5 {[%emt 0:00:47]} 51. a6 {[%emt 0:00:31]} e4 {[%emt 0:00:22]} 52. a7 {[%emt 0:00:44]} Ra8 {[%emt 0:00:24]} 53. Kb6 {[%emt 0:00:24]} Ke5 {[%emt 0:00:18]} 54. Kb7 {[%emt 0:00:17]} Rxa7+ {[%emt 0:00:17]} 55. Kxa7 {[%emt 0:00:03]} d4 {[%emt 0:00:24]} 56. Kb6 {[%emt 0:00:06]} d3 {[%emt 0:00:30]} 57. Kc5 {[%emt 0:01:41]} d2 {[%emt 0:00:04]} 58. Rd1 {[%emt 0:00:36]} e3 {[%emt 0:00:05]} 59. Kc4 {[%emt 0:00:07]} e2 {[%emt 0:00:43]} 60. Rxd2 {[%emt 0:00:06]} e1=Q {[%emt 0:00:05]} 61. Rd5+ {[%emt 0:00:55]} Kf4 {[%emt 0:00:16]} 62. Rd4+ {[%emt 0:00:14]} Qe4 {[%emt 0:02:16]} 63. Kc5 {[%emt 0:00:11]} Qxd4+ {[%emt 0:00:29]} 64. Kxd4 {[%emt 0:00:03]} f5 {[%emt 0:00:19]} 65. Kd3 {[%emt 0:00:11]} Kf3 {[%emt 0:00:31]} 66. Kd2 {[%emt 0:00:08]} f4 {[%emt 0:00:14]} 67. Ke1 {[%emt 0:00:18]} Kg2 {[%emt 0:00:03]} 0-1

[Event "Hungarian Youth-ch I 2024"]
[Site "Szolnok"]
[Date "2024.04.03"]
[Round "5.25"]
[White "Balazs, Sztella Anna"]
[Black "Szarvas, Nora"]
[Result "1/2-1/2"]
[ECO "C43"]
[WhiteElo "1805"]
[BlackElo "1955"]
[Annotator "RC"]
[PlyCount "144"]
[EventDate "2024.03.31"]
[EventType "swiss"]
[EventCountry "HUN"]
[SourceTitle "playchess.com"]
[Source "ChessBase"]
[SourceQuality "1"]
[TimeControl "5400+30"]

1. e4 {[%emt 0:00:02]} e5 {[%emt 0:00:16]} 2. Nf3 {[%emt 0:00:05]} Nf6 {[%emt 0:00:05]} 3. d4 {[%emt 0:01:06]} Nxe4 {[%emt 0:06:34]} 4. Nxe5 {[%emt 0:00:17]} d6 {[%emt 0:02:34]} 5. Nf3 {[%emt 0:00:41]} Bg4 {[%emt 0:07:43]} 6. Be2 {[%emt 0:05:27]} Qd7 {[%emt 0:09:21]} 7. Bf4 {[%emt 0:05:44]} Qf5 {[%emt 0:09:13]} 8. Be3 {[%emt 0:04:06]} Nd7 {[%emt 0:04:00]} 9. Nbd2 {[%emt 0:03:28]} O-O-O {[%emt 0:07:48]} 10. h3 {[%emt 0:03:47]} Bxf3 {[%emt 0:02:17]} 11. Bxf3 {[%emt 0:00:23]} d5 {[%emt 0:03:15]} 12. c3 {[%emt 0:03:22]} Ndf6 {[%emt 0:05:16]} 13. b4 {[%emt 0:05:36]} Nxc3 {[%emt 0:04:10]} 14. Qb3 {[%emt 0:00:14]} Nce4 {[%emt 0:00:30]} 15. Rc1 {[%emt 0:04:12]} Bd6 {[%emt 0:01:19]} 16. Nb1 {[%emt 0:06:22]} Rhe8 {[%emt 0:03:39]} 17. b5 {[%emt 0:02:54]} Kb8 {[%emt 0:03:02]} 18. a4 {[%emt 0:03:49]} Qe6 {[%emt 0:03:51]} 19. O-O {[%emt 0:06:22]} g5 {[%emt 0:01:35]} 20. Bxe4 {[%emt 0:05:03]} Nxe4 {[%emt 0:04:22]} 21. Rfe1 {[%emt 0:06:14]} g4 {[%emt 0:02:24]} 22. hxg4 {[%emt 0:04:46]} Qxg4 {[%emt 0:00:49]} 23. f3 {[%emt 0:01:15]} Qg3 {[%emt 0:03:21]} 24. fxe4 {[%emt 0:01:38]} Rxe4 {[%emt 0:00:35]} 25. Nd2 {[%emt 0:13:31]} Rg8 {[%emt 0:03:43]} 26. Re2 {[%emt 0:00:36]} Rh4 {[%emt 0:00:32]} 27. Nf1 {[%emt 0:01:20]} Qh3 {[%emt 0:03:17]} 28. Qxd5 {[%emt 0:02:08]} Rh5 {[%emt 0:03:09]} 29. Qe4 {[%emt 0:05:33]} Rh4 {[%emt 0:00:37]} 30. Qe8+ {[%emt 0:02:43]} Rxe8 {[%emt 0:00:43]} 31. gxh3 {[%emt 0:00:03]} Rxd4 {[%emt 0:01:11]} 32. Bxd4 {[%emt 0:00:55]} Rxe2 {[%emt 0:00:04]} 33. Bf2 {[%emt 0:00:13]} Re4 {[%emt 0:01:21]} 34. Re1 {[%emt 0:00:27]} Rxe1 {[%emt 0:00:08]} 35. Bxe1 {[%emt 0:00:02]} Kc8 {[%emt 0:01:08]} 36. Kf2 {[%emt 0:00:23]} Kd7 {[%emt 0:00:27]} 37. Ke3 {[%emt 0:00:39]} c6 {[%emt 0:00:34]} 38. Kd4 {[%emt 0:00:55]} cxb5 {[%emt 0:00:08]} 39. axb5 {[%emt 0:00:05]} a6 {[%emt 0:00:59]} 40. bxa6 {[%emt 0:00:23]} bxa6 {[%emt 0:00:06]} 41. Ne3 {[%emt 0:00:15]} Ke6 {[%emt 0:00:30]} 42. Ke4 {[%emt 0:00:09]} Kf6 {[%emt 0:00:53]} 43. h4 {[%emt 0:02:06]} Kg6 {[%emt 0:00:35]} 44. Kd5 {[%emt 0:00:45]} Bb8 {[%emt 0:00:36]} 45. Ke4 {[%emt 0:01:09]} Bc7 {[%emt 0:00:51]} 46. Nd5 {[%emt 0:00:28]} Bd6 {[%emt 0:01:55]} 47. Ne3 {[%emt 0:01:03]} Bc7 {[%emt 0:00:46]} 48. Kf3 {[%emt 0:00:34]} Kh5 {[%emt 0:00:37]} 49. Nd5 {[%emt 0:00:10]} Bd8 {[%emt 0:00:56]} 50. Nf4+ {[%emt 0:00:08]} Kh6 {[%emt 0:00:17]} 51. Kg4 {[%emt 0:00:16]} a5 {[%emt 0:00:32]} 52. Bd2 {[%emt 0:01:24]} Kg7 {[%emt 0:00:16]} 53. h5 {[%emt 0:00:31]} a4 {[%emt 0:01:20]} 54. Kf5 {[%emt 0:00:22]} a3 {[%emt 0:00:22]} 55. Bc3+ {[%emt 0:00:07]} Kg8 {[%emt 0:00:23]} 56. Nd5 {[%emt 0:00:16]} h6 {[%emt 0:00:41]} 57. Ne3 {[%emt 0:01:16]} Bg5 {[%emt 0:00:20]} 58. Nc4 {[%emt 0:00:56]} Be7 {[%emt 0:00:18]} 59. Bd4 {[%emt 0:00:35]} Kh7 {[%emt 0:00:13]} 60. Ke4 {[%emt 0:00:23]} Kg8 {[%emt 0:00:23]} 61. Kd3 {[%emt 0:00:17]} f5 {[%emt 0:00:45]} 62. Ne3 {[%emt 0:00:36]} f4 {[%emt 0:00:32]} 63. Nd5 {[%emt 0:00:36]} Bd6 {[%emt 0:01:11]} 64. Ke4 {[%emt 0:00:12]} f3 {[%emt 0:00:17]} 65. Kxf3 {[%emt 0:00:25]} Kf7 {[%emt 0:00:11]} 66. Ke4 {[%emt 0:00:35]} Bf8 {[%emt 0:00:58]} 67. Kf5 {[%emt 0:00:57]} Bd6 {[%emt 0:00:24]} 68. Nc3 {[%emt 0:00:15]} Be7 {[%emt 0:00:22]} 69. Nd5 {[%emt 0:00:37]} Bf8 {[%emt 0:00:14]} 70. Nc3 {[%emt 0:00:19]} Be7 {[%emt 0:00:10]} 71. Nb5 {[%emt 0:00:12]} Bf8 {[%emt 0:00:13]} 72. Nc3 {[%emt 0:00:54]} Be7 1/2-1/2

[Event "Hungarian Youth-ch I 2024"]
[Site "Szolnok"]
[Date "2024.04.03"]
[Round "5.26"]
[White "Toth, Timea"]
[Black "Bende, Eniko Tunde"]
[Result "1/2-1/2"]
[ECO "B20"]
[WhiteElo "1978"]
[BlackElo "1650"]
[Annotator "RC"]
[PlyCount "56"]
[EventDate "2024.03.31"]
[EventType "swiss"]
[EventCountry "HUN"]
[SourceTitle "playchess.com"]
[Source "ChessBase"]
[SourceQuality "1"]
[TimeControl "5400+30"]

1. e4 {[%emt 0:00:03]} c5 {[%emt 0:00:06]} 2. c4 {[%emt 0:00:02]} Nc6 {[%emt 0:00:18]} 3. Ne2 {[%emt 0:00:10]} Nf6 {[%emt 0:00:20]} 4. Nbc3 {[%emt 0:00:10]} e6 {[%emt 0:00:31]} 5. d4 {[%emt 0:00:04]} cxd4 {[%emt 0:00:28]} 6. Nxd4 {[%emt 0:00:05]} Bb4 {[%emt 0:00:17]} 7. Nxc6 {[%emt 0:00:41]} dxc6 {[%emt 0:01:08]} 8. Qxd8+ {[%emt 0:00:07]} Kxd8 {[%emt 0:00:07]} 9. Bd2 {[%emt 0:01:05]} Ke7 {[%emt 0:02:12]} 10. f3 {[%emt 0:05:19]} Bd7 {[%emt 0:02:27]} 11. e5 {[%emt 0:01:50]} Ne8 {[%emt 0:01:35]} 12. Ne4 {[%emt 0:00:31]} Bxd2+ {[%emt 0:00:37]} 13. Kxd2 {[%emt 0:00:10]} f6 {[%emt 0:00:45]} 14. f4 {[%emt 0:29:44]} f5 {[%emt 0:00:27]} 15. Nc3 {[%emt 0:00:53]} Nc7 {[%emt 0:01:42]} 16. b4 {[%emt 0:00:47]} b5 17. cxb5 {[%emt 0:04:03]} Nxb5 {[%emt 0:02:01]} 18. Nxb5 {[%emt 0:01:17]} cxb5 {[%emt 0:00:10]} 19. Rc1 {[%emt 0:00:13]} Rac8 {[%emt 0:00:29]} 20. Be2 {[%emt 0:02:18]} Rhd8 {[%emt 0:00:43]} 21. Rxc8 {[%emt 0:02:33]} Rxc8 {[%emt 0:00:45]} 22. Rc1 {[%emt 0:01:36]} Rxc1 {[%emt 0:00:52]} 23. Kxc1 {[%emt 0:00:02]} a6 {[%emt 0:00:18]} 24. Bf3 {[%emt 0:02:06]} Bc8 {[%emt 0:00:19]} 25. Kd2 {[%emt 0:01:03]} Kd7 {[%emt 0:00:37]} 26. Kc3 {[%emt 0:21:56]} Kc7 {[%emt 0:00:30]} 27. Kd4 {[%emt 0:02:00]} Kb6 {[%emt 0:00:09]} 28. Ba8 {[%emt 0:14:21]} Bd7 {[%emt 0:09:24]} 1/2-1/2

[Event "Hungarian Youth-ch I 2024"]
[Site "Szolnok"]
[Date "2024.04.04"]
[Round "6.1"]
[White "Szikszai, Bertalan"]
[Black "Kocsmar, Akos"]
[Result "1/2-1/2"]
[ECO "B10"]
[WhiteElo "2312"]
[BlackElo "2029"]
[Annotator "RC"]
[PlyCount "50"]
[EventDate "2024.03.31"]
[EventType "swiss"]
[EventCountry "HUN"]
[SourceTitle "playchess.com"]
[Source "ChessBase"]
[SourceQuality "1"]
[TimeControl "5400+30"]

1. e4 {[%emt 0:00:34]} c6 {[%emt 0:00:04]} 2. Nc3 {[%emt 0:01:51]} d5 {[%emt 0:00:12]} 3. Nf3 {[%emt 0:00:40]} dxe4 {[%emt 0:00:07]} 4. Nxe4 {[%emt 0:00:05]} Nf6 {[%emt 0:00:05]} 5. Nxf6+ {[%emt 0:06:01]} exf6 {[%emt 0:00:18]} 6. d4 {[%emt 0:04:30]} Bd6 {[%emt 0:00:04]} 7. Bd3 {[%emt 0:01:19]} O-O {[%emt 0:09:37]} 8. Be3 {[%emt 0:07:58]} Na6 {[%emt 0:00:43]} 9. c3 {[%emt 0:01:25]} Nc7 {[%emt 0:04:03]} 10. Qc2 {[%emt 0:03:16]} h6 {[%emt 0:06:32]} 11. O-O-O {[%emt 0:06:12]} Be6 {[%emt 0:08:26]} 12. Kb1 {[%emt 0:01:52]} Nd5 {[%emt 0:03:50]} 13. Nd2 {[%emt 0:06:39]} Re8 {[%emt 0:05:16]} 14. Ne4 {[%emt 0:08:27]} Bf8 {[%emt 0:05:31]} 15. Bd2 {[%emt 0:03:36]} Qc7 {[%emt 0:05:40]} 16. Ng3 {[%emt 0:04:42]} Rad8 {[%emt 0:05:40]} 17. Rhe1 {[%emt 0:01:04]} Nb6 {[%emt 0:03:07]} 18. Bf5 {[%emt 0:04:09]} Bd5 {[%emt 0:06:11]} 19. b3 {[%emt 0:04:39]} Be6 {[%emt 0:03:06]} 20. Nh5 {[%emt 0:03:25]} Qd7 {[%emt 0:06:36]} 21. Rxe6 {[%emt 0:04:26]} fxe6 {[%emt 0:04:50]} 22. Bg6 {[%emt 0:00:09]} Nd5 {[%emt 0:03:34]} 23. Re1 {[%emt 0:21:23]} Kh8 {[%emt 0:10:26]} 24. Qe4 {[%emt 0:02:02]} Re7 {[%emt 0:04:46]} 25. Qh4 {[%emt 0:01:19]} b5 1/2-1/2

[Event "Hungarian Youth-ch I 2024"]
[Site "Szolnok"]
[Date "2024.04.04"]
[Round "6.2"]
[White "Fule, Simon"]
[Black "Gathi, Donat"]
[Result "1/2-1/2"]
[ECO "C92"]
[WhiteElo "2262"]
[BlackElo "2192"]
[Annotator "RC"]
[PlyCount "27"]
[EventDate "2024.03.31"]
[EventType "swiss"]
[EventCountry "HUN"]
[SourceTitle "playchess.com"]
[Source "ChessBase"]
[SourceQuality "1"]
[TimeControl "5400+30"]

1. e4 {[%emt 0:09:53]} e5 {[%emt 0:00:03]} 2. Nf3 {[%emt 0:00:05]} Nc6 {[%emt 0:00:07]} 3. Bb5 {[%emt 0:00:22]} a6 {[%emt 0:00:07]} 4. Ba4 {[%emt 0:00:03]} Nf6 {[%emt 0:00:08]} 5. O-O {[%emt 0:00:06]} Be7 {[%emt 0:00:05]} 6. Re1 {[%emt 0:00:20]} b5 {[%emt 0:00:07]} 7. Bb3 {[%emt 0:00:04]} d6 {[%emt 0:00:06]} 8. c3 {[%emt 0:00:32]} O-O {[%emt 0:00:08]} 9. h3 {[%emt 0:00:05]} Be6 {[%emt 0:00:05]} 10. d4 {[%emt 0:20:10]} Bxb3 {[%emt 0:00:36]} 11. Qxb3 {[%emt 0:00:14]} Qd7 {[%emt 0:01:32]} 12. Nbd2 {[%emt 0:10:33]} Rfe8 {[%emt 0:00:15]} 13. Nf1 {[%emt 0:07:30]} d5 {[%emt 0:00:22]} 14. exd5 {[%emt 0:20:37]} 1/2-1/2

[Event "Hungarian Youth-ch I 2024"]
[Site "Szolnok"]
[Date "2024.04.04"]
[Round "6.3"]
[White "Jankovics, Emod"]
[Black "Borzsei, Andras"]
[Result "0-1"]
[ECO "D02"]
[WhiteElo "1699"]
[BlackElo "2126"]
[Annotator "RC"]
[PlyCount "98"]
[EventDate "2024.03.31"]
[EventType "swiss"]
[EventCountry "HUN"]
[SourceTitle "playchess.com"]
[Source "ChessBase"]
[SourceQuality "1"]
[TimeControl "5400+30"]

1. d4 {[%emt 0:00:01]} d5 {[%emt 0:00:11]} 2. Nf3 {[%emt 0:00:04]} Nf6 {[%emt 0:00:06]} 3. Bf4 {[%emt 0:00:04]} c5 {[%emt 0:00:18]} 4. e3 {[%emt 0:00:56]} Nc6 {[%emt 0:00:33]} 5. Nbd2 {[%emt 0:00:20]} Bg4 {[%emt 0:07:47]} 6. h3 {[%emt 0:06:36]} Bxf3 {[%emt 0:02:25]} 7. Nxf3 {[%emt 0:00:44]} e6 {[%emt 0:00:05]} 8. c3 {[%emt 0:01:43]} Bd6 {[%emt 0:01:42]} 9. Ne5 {[%emt 0:05:12]} Bxe5 {[%emt 0:02:34]} 10. Bxe5 {[%emt 0:01:53]} Nxe5 {[%emt 0:00:56]} 11. dxe5 {[%emt 0:00:06]} Nd7 {[%emt 0:00:49]} 12. Bb5 {[%emt 0:01:26]} O-O {[%emt 0:04:33]} 13. Bxd7 {[%emt 0:02:57]} Qxd7 {[%emt 0:00:19]} 14. O-O {[%emt 0:04:20]} Qc7 {[%emt 0:03:15]} 15. f4 {[%emt 0:05:04]} f6 {[%emt 0:01:18]} 16. exf6 {[%emt 0:14:32]} Rxf6 {[%emt 0:00:22]} 17. Qe2 {[%emt 0:00:40]} Raf8 {[%emt 0:10:51]} 18. Rf2 {[%emt 0:04:50]} Qc6 {[%emt 0:22:56]} 19. Rc1 {[%emt 0:15:52]} b5 {[%emt 0:03:34]} 20. g4 {[%emt 0:09:10]} a5 {[%emt 0:06:43]} 21. g5 {[%emt 0:03:06]} Rf5 {[%emt 0:01:32]} 22. a3 {[%emt 0:01:30]} e5 {[%emt 0:04:31]} 23. Rcf1 {[%emt 0:02:53]} e4 {[%emt 0:03:18]} 24. Rc1 {[%emt 0:01:40]} Qb6 {[%emt 0:00:39]} 25. Qd1 {[%emt 0:01:13]} Rd8 {[%emt 0:03:29]} 26. Rd2 {[%emt 0:00:25]} a4 {[%emt 0:05:22]} 27. Qg4 {[%emt 0:01:09]} g6 {[%emt 0:00:47]} 28. Rcd1 {[%emt 0:04:52]} b4 {[%emt 0:00:47]} 29. cxb4 {[%emt 0:02:31]} cxb4 {[%emt 0:00:04]} 30. Qe2 {[%emt 0:00:30]} bxa3 {[%emt 0:01:00]} 31. bxa3 {[%emt 0:00:13]} Qc5 {[%emt 0:00:40]} 32. Kf2 {[%emt 0:01:44]} Rxf4+ {[%emt 0:00:30]} 33. Kg3 {[%emt 0:00:31]} Rf3+ {[%emt 0:00:14]} 34. Kg2 {[%emt 0:00:22]} Qd6 {[%emt 0:02:28]} 35. Qe1 {[%emt 0:01:24]} Qe6 {[%emt 0:00:43]} 36. Qh4 {[%emt 0:00:15]} Rxe3 {[%emt 0:06:26]} 37. Rc1 {[%emt 0:00:07]} Rf3 {[%emt 0:01:28]} 38. Rc7 {[%emt 0:00:59]} Rf7 {[%emt 0:00:19]} 39. Rdc2 {[%emt 0:01:58]} Qf5 {[%emt 0:00:51]} 40. Rf2 {[%emt 0:03:11]} Qxf2+ {[%emt 0:00:13]} 41. Qxf2 {[%emt 0:00:05]} Rxf2+ {[%emt 0:00:02]} 42. Kxf2 {[%emt 0:00:07]} d4 {[%emt 0:00:15]} 43. Re7 {[%emt 0:00:16]} d3 {[%emt 0:01:57]} 44. Ke1 {[%emt 0:00:04]} d2+ {[%emt 0:00:18]} 45. Kd1 {[%emt 0:00:03]} Rd4 {[%emt 0:00:41]} 46. h4 {[%emt 0:00:23]} Kf8 {[%emt 0:00:33]} 47. Re5 {[%emt 0:00:07]} Kf7 {[%emt 0:00:12]} 48. Rb5 {[%emt 0:00:38]} Ke6 {[%emt 0:01:02]} 49. Rb8 {[%emt 0:00:22]} Kf5 {[%emt 0:00:45]} 0-1

[Event "Hungarian Youth-ch I 2024"]
[Site "Szolnok"]
[Date "2024.04.04"]
[Round "6.4"]
[White "Gulacsi, Donat Ferenc"]
[Black "Bekesi, Aron"]
[Result "1/2-1/2"]
[ECO "C45"]
[WhiteElo "1912"]
[BlackElo "1783"]
[Annotator "RC"]
[PlyCount "68"]
[EventDate "2024.03.31"]
[EventType "swiss"]
[EventCountry "HUN"]
[SourceTitle "playchess.com"]
[Source "ChessBase"]
[SourceQuality "1"]
[TimeControl "5400+30"]

1. e4 {[%emt 0:00:18]} e5 {[%emt 0:00:08]} 2. Nf3 {[%emt 0:00:06]} Nc6 {[%emt 0:00:05]} 3. d4 {[%emt 0:00:06]} exd4 {[%emt 0:00:09]} 4. Nxd4 {[%emt 0:00:18]} Bc5 {[%emt 0:00:07]} 5. Be3 {[%emt 0:00:05]} Qf6 {[%emt 0:00:13]} 6. c3 {[%emt 0:00:14]} Nge7 {[%emt 0:00:06]} 7. Bc4 {[%emt 0:00:34]} O-O {[%emt 0:01:23]} 8. O-O {[%emt 0:01:47]} d6 {[%emt 0:01:15]} 9. Nxc6 {[%emt 0:02:38]} Nxc6 {[%emt 0:00:36]} 10. Bxc5 {[%emt 0:00:07]} dxc5 {[%emt 0:00:06]} 11. f4 {[%emt 0:00:15]} a6 {[%emt 0:16:35]} 12. Qf3 {[%emt 0:08:53]} Be6 {[%emt 0:08:43]} 13. Na3 {[%emt 0:02:52]} b5 {[%emt 0:03:44]} 14. Bxe6 {[%emt 0:07:51]} Qxe6 {[%emt 0:01:13]} 15. Nc2 {[%emt 0:03:12]} Rfe8 {[%emt 0:03:55]} 16. e5 {[%emt 0:21:20]} Rad8 {[%emt 0:06:01]} 17. f5 {[%emt 0:16:55]} Qd5 {[%emt 0:03:41]} 18. Qh3 {[%emt 0:13:56]} Nxe5 {[%emt 0:13:24]} 19. Ne3 {[%emt 0:05:00]} Qe4 {[%emt 0:06:29]} 20. f6 {[%emt 0:02:43]} Rd3 {[%emt 0:05:29]} 21. Rae1 {[%emt 0:00:59]} Ng6 {[%emt 0:08:19]} 22. Rf3 {[%emt 0:03:33]} Qh4 {[%emt 0:00:15]} 23. Qxh4 {[%emt 0:07:10]} Nxh4 {[%emt 0:00:02]} 24. Rh3 {[%emt 0:00:09]} Nf5 {[%emt 0:00:22]} 25. Kf2 {[%emt 0:00:50]} Rd2+ {[%emt 0:11:40]} 26. Re2 {[%emt 0:00:51]} Rxe2+ {[%emt 0:00:33]} 27. Kxe2 {[%emt 0:00:01]} gxf6 {[%emt 0:00:41]} 28. Rf3 {[%emt 0:01:06]} Nxe3 {[%emt 0:00:36]} 29. Rxe3 {[%emt 0:00:06]} Kf8 {[%emt 0:00:31]} 30. c4 {[%emt 0:00:55]} c6 {[%emt 0:01:58]} 31. Rxe8+ {[%emt 0:00:21]} Kxe8 {[%emt 0:00:03]} 32. Kf3 {[%emt 0:00:41]} f5 {[%emt 0:07:01]} 33. Kf4 f6 34. Kxf5 Kf7 1/2-1/2